{"text_format":"1","workbook":"xlsx","n_sheets":3,"sheets":["СПИСКИ","ТПА","ДЕТАЛИ_ЛИТЬЕ"],"not_rendered":{"charts":0,"images":0,"macros":1,"external_links":0,"defined_names":3,"comments":0,"pivot_tables":0},"unopened":[],"bounds":{"document_bytes":16777216,"sheet_cells":100000,"rows_first":2000,"rows_last":500,"rows_between":2000,"halvings":0,"cell_chars":16384,"cell_head_chars":4096},"cells_cut":0,"cells_raw":0,"read":"whole","date_system":"1900"}

{"sheet":"СПИСКИ","index":0,"n_rows":41,"n_cols":6,"rows_kept":41,"cut":false,"hidden":false,"merged":[]}
["Категория","Сторона","Ряд",null,null,"ТПА"]
["Крупное литьё","Россия","Вокзал",null,null,{"$f":"IFERROR(INDEX(ТПА[№ ТПА],SMALL(IF((ТПА[Категория]=INDEX(ДЕТАЛИ_ЛИТЬЕ!D:D,ROW(INDIRECT(CELL(\"address\")))))*ISERROR(MATCH(ТПА[№ ТПА],INDEX(ДЕТАЛИ_ЛИТЬЕ!E:I,ROW(INDIRECT(CELL(\"address\"))),),0)),ROW(ТПА[Категория])-1),ROW(ТПА!A1))),\"\")","v":"007"}]
["Среднее литьё","Франция","Большой ряд",null,null,{"$f":"IFERROR(INDEX(ТПА[№ ТПА],SMALL(IF((ТПА[Категория]=INDEX(ДЕТАЛИ_ЛИТЬЕ!D:D,ROW(INDIRECT(CELL(\"address\")))))*ISERROR(MATCH(ТПА[№ ТПА],INDEX(ДЕТАЛИ_ЛИТЬЕ!E:I,ROW(INDIRECT(CELL(\"address\"))),),0)),ROW(ТПА[Категория])-1),ROW(ТПА!A2))),\"\")","v":"008"}]
["Мелкое литьё",null,"Средний ряд",null,null,{"$f":"IFERROR(INDEX(ТПА[№ ТПА],SMALL(IF((ТПА[Категория]=INDEX(ДЕТАЛИ_ЛИТЬЕ!D:D,ROW(INDIRECT(CELL(\"address\")))))*ISERROR(MATCH(ТПА[№ ТПА],INDEX(ДЕТАЛИ_ЛИТЬЕ!E:I,ROW(INDIRECT(CELL(\"address\"))),),0)),ROW(ТПА[Категория])-1),ROW(ТПА!A3))),\"\")","v":"1005"}]
[null,null,"Малый ряд",null,null,{"$f":"IFERROR(INDEX(ТПА[№ ТПА],SMALL(IF((ТПА[Категория]=INDEX(ДЕТАЛИ_ЛИТЬЕ!D:D,ROW(INDIRECT(CELL(\"address\")))))*ISERROR(MATCH(ТПА[№ ТПА],INDEX(ДЕТАЛИ_ЛИТЬЕ!E:I,ROW(INDIRECT(CELL(\"address\"))),),0)),ROW(ТПА[Категория])-1),ROW(ТПА!A4))),\"\")","v":"1004"}]
[null,null,"Новая зона",null,null,{"$f":"IFERROR(INDEX(ТПА[№ ТПА],SMALL(IF((ТПА[Категория]=INDEX(ДЕТАЛИ_ЛИТЬЕ!D:D,ROW(INDIRECT(CELL(\"address\")))))*ISERROR(MATCH(ТПА[№ ТПА],INDEX(ДЕТАЛИ_ЛИТЬЕ!E:I,ROW(INDIRECT(CELL(\"address\"))),),0)),ROW(ТПА[Категория])-1),ROW(ТПА!A5))),\"\")","v":"011"}]
[null,null,"РЕНО",null,null,{"$f":"IFERROR(INDEX(ТПА[№ ТПА],SMALL(IF((ТПА[Категория]=INDEX(ДЕТАЛИ_ЛИТЬЕ!D:D,ROW(INDIRECT(CELL(\"address\")))))*ISERROR(MATCH(ТПА[№ ТПА],INDEX(ДЕТАЛИ_ЛИТЬЕ!E:I,ROW(INDIRECT(CELL(\"address\"))),),0)),ROW(ТПА[Категория])-1),ROW(ТПА!A6))),\"\")","v":"012"}]
[null,null,null,null,null,{"$f":"IFERROR(INDEX(ТПА[№ ТПА],SMALL(IF((ТПА[Категория]=INDEX(ДЕТАЛИ_ЛИТЬЕ!D:D,ROW(INDIRECT(CELL(\"address\")))))*ISERROR(MATCH(ТПА[№ ТПА],INDEX(ДЕТАЛИ_ЛИТЬЕ!E:I,ROW(INDIRECT(CELL(\"address\"))),),0)),ROW(ТПА[Категория])-1),ROW(ТПА!A7))),\"\")","v":"013"}]
[null,null,null,null,null,{"$f":"IFERROR(INDEX(ТПА[№ ТПА],SMALL(IF((ТПА[Категория]=INDEX(ДЕТАЛИ_ЛИТЬЕ!D:D,ROW(INDIRECT(CELL(\"address\")))))*ISERROR(MATCH(ТПА[№ ТПА],INDEX(ДЕТАЛИ_ЛИТЬЕ!E:I,ROW(INDIRECT(CELL(\"address\"))),),0)),ROW(ТПА[Категория])-1),ROW(ТПА!A8))),\"\")","v":"6010"}]
[null,null,null,null,null,{"$f":"IFERROR(INDEX(ТПА[№ ТПА],SMALL(IF((ТПА[Категория]=INDEX(ДЕТАЛИ_ЛИТЬЕ!D:D,ROW(INDIRECT(CELL(\"address\")))))*ISERROR(MATCH(ТПА[№ ТПА],INDEX(ДЕТАЛИ_ЛИТЬЕ!E:I,ROW(INDIRECT(CELL(\"address\"))),),0)),ROW(ТПА[Категория])-1),ROW(ТПА!A9))),\"\")","v":"6002"}]
[null,null,null,null,null,{"$f":"IFERROR(INDEX(ТПА[№ ТПА],SMALL(IF((ТПА[Категория]=INDEX(ДЕТАЛИ_ЛИТЬЕ!D:D,ROW(INDIRECT(CELL(\"address\")))))*ISERROR(MATCH(ТПА[№ ТПА],INDEX(ДЕТАЛИ_ЛИТЬЕ!E:I,ROW(INDIRECT(CELL(\"address\"))),),0)),ROW(ТПА[Категория])-1),ROW(ТПА!A10))),\"\")","v":"6003"}]
[null,null,null,null,null,{"$f":"IFERROR(INDEX(ТПА[№ ТПА],SMALL(IF((ТПА[Категория]=INDEX(ДЕТАЛИ_ЛИТЬЕ!D:D,ROW(INDIRECT(CELL(\"address\")))))*ISERROR(MATCH(ТПА[№ ТПА],INDEX(ДЕТАЛИ_ЛИТЬЕ!E:I,ROW(INDIRECT(CELL(\"address\"))),),0)),ROW(ТПА[Категория])-1),ROW(ТПА!A11))),\"\")","v":"1015"}]
[null,null,null,null,null,{"$f":"IFERROR(INDEX(ТПА[№ ТПА],SMALL(IF((ТПА[Категория]=INDEX(ДЕТАЛИ_ЛИТЬЕ!D:D,ROW(INDIRECT(CELL(\"address\")))))*ISERROR(MATCH(ТПА[№ ТПА],INDEX(ДЕТАЛИ_ЛИТЬЕ!E:I,ROW(INDIRECT(CELL(\"address\"))),),0)),ROW(ТПА[Категория])-1),ROW(ТПА!A12))),\"\")","v":"1016"}]
[null,null,null,null,null,{"$f":"IFERROR(INDEX(ТПА[№ ТПА],SMALL(IF((ТПА[Категория]=INDEX(ДЕТАЛИ_ЛИТЬЕ!D:D,ROW(INDIRECT(CELL(\"address\")))))*ISERROR(MATCH(ТПА[№ ТПА],INDEX(ДЕТАЛИ_ЛИТЬЕ!E:I,ROW(INDIRECT(CELL(\"address\"))),),0)),ROW(ТПА[Категория])-1),ROW(ТПА!A13))),\"\")","v":""}]
[null,null,null,null,null,{"$f":"IFERROR(INDEX(ТПА[№ ТПА],SMALL(IF((ТПА[Категория]=INDEX(ДЕТАЛИ_ЛИТЬЕ!D:D,ROW(INDIRECT(CELL(\"address\")))))*ISERROR(MATCH(ТПА[№ ТПА],INDEX(ДЕТАЛИ_ЛИТЬЕ!E:I,ROW(INDIRECT(CELL(\"address\"))),),0)),ROW(ТПА[Категория])-1),ROW(ТПА!A14))),\"\")","v":""}]
[null,null,null,null,null,{"$f":"IFERROR(INDEX(ТПА[№ ТПА],SMALL(IF((ТПА[Категория]=INDEX(ДЕТАЛИ_ЛИТЬЕ!D:D,ROW(INDIRECT(CELL(\"address\")))))*ISERROR(MATCH(ТПА[№ ТПА],INDEX(ДЕТАЛИ_ЛИТЬЕ!E:I,ROW(INDIRECT(CELL(\"address\"))),),0)),ROW(ТПА[Категория])-1),ROW(ТПА!A15))),\"\")","v":""}]
[null,null,null,null,null,{"$f":"IFERROR(INDEX(ТПА[№ ТПА],SMALL(IF((ТПА[Категория]=INDEX(ДЕТАЛИ_ЛИТЬЕ!D:D,ROW(INDIRECT(CELL(\"address\")))))*ISERROR(MATCH(ТПА[№ ТПА],INDEX(ДЕТАЛИ_ЛИТЬЕ!E:I,ROW(INDIRECT(CELL(\"address\"))),),0)),ROW(ТПА[Категория])-1),ROW(ТПА!A16))),\"\")","v":""}]
[null,null,null,null,null,{"$f":"IFERROR(INDEX(ТПА[№ ТПА],SMALL(IF((ТПА[Категория]=INDEX(ДЕТАЛИ_ЛИТЬЕ!D:D,ROW(INDIRECT(CELL(\"address\")))))*ISERROR(MATCH(ТПА[№ ТПА],INDEX(ДЕТАЛИ_ЛИТЬЕ!E:I,ROW(INDIRECT(CELL(\"address\"))),),0)),ROW(ТПА[Категория])-1),ROW(ТПА!A17))),\"\")","v":""}]
[null,null,null,null,null,{"$f":"IFERROR(INDEX(ТПА[№ ТПА],SMALL(IF((ТПА[Категория]=INDEX(ДЕТАЛИ_ЛИТЬЕ!D:D,ROW(INDIRECT(CELL(\"address\")))))*ISERROR(MATCH(ТПА[№ ТПА],INDEX(ДЕТАЛИ_ЛИТЬЕ!E:I,ROW(INDIRECT(CELL(\"address\"))),),0)),ROW(ТПА[Категория])-1),ROW(ТПА!A18))),\"\")","v":""}]
[null,null,null,null,null,{"$f":"IFERROR(INDEX(ТПА[№ ТПА],SMALL(IF((ТПА[Категория]=INDEX(ДЕТАЛИ_ЛИТЬЕ!D:D,ROW(INDIRECT(CELL(\"address\")))))*ISERROR(MATCH(ТПА[№ ТПА],INDEX(ДЕТАЛИ_ЛИТЬЕ!E:I,ROW(INDIRECT(CELL(\"address\"))),),0)),ROW(ТПА[Категория])-1),ROW(ТПА!A19))),\"\")","v":""}]
[null,null,null,null,null,{"$f":"IFERROR(INDEX(ТПА[№ ТПА],SMALL(IF((ТПА[Категория]=INDEX(ДЕТАЛИ_ЛИТЬЕ!D:D,ROW(INDIRECT(CELL(\"address\")))))*ISERROR(MATCH(ТПА[№ ТПА],INDEX(ДЕТАЛИ_ЛИТЬЕ!E:I,ROW(INDIRECT(CELL(\"address\"))),),0)),ROW(ТПА[Категория])-1),ROW(ТПА!A20))),\"\")","v":""}]
[null,null,null,null,null,{"$f":"IFERROR(INDEX(ТПА[№ ТПА],SMALL(IF((ТПА[Категория]=INDEX(ДЕТАЛИ_ЛИТЬЕ!D:D,ROW(INDIRECT(CELL(\"address\")))))*ISERROR(MATCH(ТПА[№ ТПА],INDEX(ДЕТАЛИ_ЛИТЬЕ!E:I,ROW(INDIRECT(CELL(\"address\"))),),0)),ROW(ТПА[Категория])-1),ROW(ТПА!A21))),\"\")","v":""}]
[null,null,null,null,null,{"$f":"IFERROR(INDEX(ТПА[№ ТПА],SMALL(IF((ТПА[Категория]=INDEX(ДЕТАЛИ_ЛИТЬЕ!D:D,ROW(INDIRECT(CELL(\"address\")))))*ISERROR(MATCH(ТПА[№ ТПА],INDEX(ДЕТАЛИ_ЛИТЬЕ!E:I,ROW(INDIRECT(CELL(\"address\"))),),0)),ROW(ТПА[Категория])-1),ROW(ТПА!A22))),\"\")","v":""}]
[null,null,null,null,null,{"$f":"IFERROR(INDEX(ТПА[№ ТПА],SMALL(IF((ТПА[Категория]=INDEX(ДЕТАЛИ_ЛИТЬЕ!D:D,ROW(INDIRECT(CELL(\"address\")))))*ISERROR(MATCH(ТПА[№ ТПА],INDEX(ДЕТАЛИ_ЛИТЬЕ!E:I,ROW(INDIRECT(CELL(\"address\"))),),0)),ROW(ТПА[Категория])-1),ROW(ТПА!A23))),\"\")","v":""}]
[null,null,null,null,null,{"$f":"IFERROR(INDEX(ТПА[№ ТПА],SMALL(IF((ТПА[Категория]=INDEX(ДЕТАЛИ_ЛИТЬЕ!D:D,ROW(INDIRECT(CELL(\"address\")))))*ISERROR(MATCH(ТПА[№ ТПА],INDEX(ДЕТАЛИ_ЛИТЬЕ!E:I,ROW(INDIRECT(CELL(\"address\"))),),0)),ROW(ТПА[Категория])-1),ROW(ТПА!A24))),\"\")","v":""}]
[null,null,null,null,null,{"$f":"IFERROR(INDEX(ТПА[№ ТПА],SMALL(IF((ТПА[Категория]=INDEX(ДЕТАЛИ_ЛИТЬЕ!D:D,ROW(INDIRECT(CELL(\"address\")))))*ISERROR(MATCH(ТПА[№ ТПА],INDEX(ДЕТАЛИ_ЛИТЬЕ!E:I,ROW(INDIRECT(CELL(\"address\"))),),0)),ROW(ТПА[Категория])-1),ROW(ТПА!A25))),\"\")","v":""}]
[null,null,null,null,null,{"$f":"IFERROR(INDEX(ТПА[№ ТПА],SMALL(IF((ТПА[Категория]=INDEX(ДЕТАЛИ_ЛИТЬЕ!D:D,ROW(INDIRECT(CELL(\"address\")))))*ISERROR(MATCH(ТПА[№ ТПА],INDEX(ДЕТАЛИ_ЛИТЬЕ!E:I,ROW(INDIRECT(CELL(\"address\"))),),0)),ROW(ТПА[Категория])-1),ROW(ТПА!A26))),\"\")","v":""}]
[null,null,null,null,null,{"$f":"IFERROR(INDEX(ТПА[№ ТПА],SMALL(IF((ТПА[Категория]=INDEX(ДЕТАЛИ_ЛИТЬЕ!D:D,ROW(INDIRECT(CELL(\"address\")))))*ISERROR(MATCH(ТПА[№ ТПА],INDEX(ДЕТАЛИ_ЛИТЬЕ!E:I,ROW(INDIRECT(CELL(\"address\"))),),0)),ROW(ТПА[Категория])-1),ROW(ТПА!A27))),\"\")","v":""}]
[null,null,null,null,null,{"$f":"IFERROR(INDEX(ТПА[№ ТПА],SMALL(IF((ТПА[Категория]=INDEX(ДЕТАЛИ_ЛИТЬЕ!D:D,ROW(INDIRECT(CELL(\"address\")))))*ISERROR(MATCH(ТПА[№ ТПА],INDEX(ДЕТАЛИ_ЛИТЬЕ!E:I,ROW(INDIRECT(CELL(\"address\"))),),0)),ROW(ТПА[Категория])-1),ROW(ТПА!A28))),\"\")","v":""}]
[null,null,null,null,null,{"$f":"IFERROR(INDEX(ТПА[№ ТПА],SMALL(IF((ТПА[Категория]=INDEX(ДЕТАЛИ_ЛИТЬЕ!D:D,ROW(INDIRECT(CELL(\"address\")))))*ISERROR(MATCH(ТПА[№ ТПА],INDEX(ДЕТАЛИ_ЛИТЬЕ!E:I,ROW(INDIRECT(CELL(\"address\"))),),0)),ROW(ТПА[Категория])-1),ROW(ТПА!A29))),\"\")","v":""}]
[null,null,null,null,null,{"$f":"IFERROR(INDEX(ТПА[№ ТПА],SMALL(IF((ТПА[Категория]=INDEX(ДЕТАЛИ_ЛИТЬЕ!D:D,ROW(INDIRECT(CELL(\"address\")))))*ISERROR(MATCH(ТПА[№ ТПА],INDEX(ДЕТАЛИ_ЛИТЬЕ!E:I,ROW(INDIRECT(CELL(\"address\"))),),0)),ROW(ТПА[Категория])-1),ROW(ТПА!A30))),\"\")","v":""}]
[null,null,null,null,null,{"$f":"IFERROR(INDEX(ТПА[№ ТПА],SMALL(IF((ТПА[Категория]=INDEX(ДЕТАЛИ_ЛИТЬЕ!D:D,ROW(INDIRECT(CELL(\"address\")))))*ISERROR(MATCH(ТПА[№ ТПА],INDEX(ДЕТАЛИ_ЛИТЬЕ!E:I,ROW(INDIRECT(CELL(\"address\"))),),0)),ROW(ТПА[Категория])-1),ROW(ТПА!A31))),\"\")","v":""}]
[null,null,null,null,null,{"$f":"IFERROR(INDEX(ТПА[№ ТПА],SMALL(IF((ТПА[Категория]=INDEX(ДЕТАЛИ_ЛИТЬЕ!D:D,ROW(INDIRECT(CELL(\"address\")))))*ISERROR(MATCH(ТПА[№ ТПА],INDEX(ДЕТАЛИ_ЛИТЬЕ!E:I,ROW(INDIRECT(CELL(\"address\"))),),0)),ROW(ТПА[Категория])-1),ROW(ТПА!A32))),\"\")","v":""}]
[null,null,null,null,null,{"$f":"IFERROR(INDEX(ТПА[№ ТПА],SMALL(IF((ТПА[Категория]=INDEX(ДЕТАЛИ_ЛИТЬЕ!D:D,ROW(INDIRECT(CELL(\"address\")))))*ISERROR(MATCH(ТПА[№ ТПА],INDEX(ДЕТАЛИ_ЛИТЬЕ!E:I,ROW(INDIRECT(CELL(\"address\"))),),0)),ROW(ТПА[Категория])-1),ROW(ТПА!A33))),\"\")","v":""}]
[null,null,null,null,null,{"$f":"IFERROR(INDEX(ТПА[№ ТПА],SMALL(IF((ТПА[Категория]=INDEX(ДЕТАЛИ_ЛИТЬЕ!D:D,ROW(INDIRECT(CELL(\"address\")))))*ISERROR(MATCH(ТПА[№ ТПА],INDEX(ДЕТАЛИ_ЛИТЬЕ!E:I,ROW(INDIRECT(CELL(\"address\"))),),0)),ROW(ТПА[Категория])-1),ROW(ТПА!A34))),\"\")","v":""}]
[null,null,null,null,null,{"$f":"IFERROR(INDEX(ТПА[№ ТПА],SMALL(IF((ТПА[Категория]=INDEX(ДЕТАЛИ_ЛИТЬЕ!D:D,ROW(INDIRECT(CELL(\"address\")))))*ISERROR(MATCH(ТПА[№ ТПА],INDEX(ДЕТАЛИ_ЛИТЬЕ!E:I,ROW(INDIRECT(CELL(\"address\"))),),0)),ROW(ТПА[Категория])-1),ROW(ТПА!A35))),\"\")","v":""}]
[null,null,null,null,null,{"$f":"IFERROR(INDEX(ТПА[№ ТПА],SMALL(IF((ТПА[Категория]=INDEX(ДЕТАЛИ_ЛИТЬЕ!D:D,ROW(INDIRECT(CELL(\"address\")))))*ISERROR(MATCH(ТПА[№ ТПА],INDEX(ДЕТАЛИ_ЛИТЬЕ!E:I,ROW(INDIRECT(CELL(\"address\"))),),0)),ROW(ТПА[Категория])-1),ROW(ТПА!A36))),\"\")","v":""}]
[null,null,null,null,null,{"$f":"IFERROR(INDEX(ТПА[№ ТПА],SMALL(IF((ТПА[Категория]=INDEX(ДЕТАЛИ_ЛИТЬЕ!D:D,ROW(INDIRECT(CELL(\"address\")))))*ISERROR(MATCH(ТПА[№ ТПА],INDEX(ДЕТАЛИ_ЛИТЬЕ!E:I,ROW(INDIRECT(CELL(\"address\"))),),0)),ROW(ТПА[Категория])-1),ROW(ТПА!A37))),\"\")","v":""}]
[null,null,null,null,null,{"$f":"IFERROR(INDEX(ТПА[№ ТПА],SMALL(IF((ТПА[Категория]=INDEX(ДЕТАЛИ_ЛИТЬЕ!D:D,ROW(INDIRECT(CELL(\"address\")))))*ISERROR(MATCH(ТПА[№ ТПА],INDEX(ДЕТАЛИ_ЛИТЬЕ!E:I,ROW(INDIRECT(CELL(\"address\"))),),0)),ROW(ТПА[Категория])-1),ROW(ТПА!A38))),\"\")","v":""}]
[null,null,null,null,null,{"$f":"IFERROR(INDEX(ТПА[№ ТПА],SMALL(IF((ТПА[Категория]=INDEX(ДЕТАЛИ_ЛИТЬЕ!D:D,ROW(INDIRECT(CELL(\"address\")))))*ISERROR(MATCH(ТПА[№ ТПА],INDEX(ДЕТАЛИ_ЛИТЬЕ!E:I,ROW(INDIRECT(CELL(\"address\"))),),0)),ROW(ТПА[Категория])-1),ROW(ТПА!A39))),\"\")","v":""}]
[null,null,null,null,null,{"$f":"IFERROR(INDEX(ТПА[№ ТПА],SMALL(IF((ТПА[Категория]=INDEX(ДЕТАЛИ_ЛИТЬЕ!D:D,ROW(INDIRECT(CELL(\"address\")))))*ISERROR(MATCH(ТПА[№ ТПА],INDEX(ДЕТАЛИ_ЛИТЬЕ!E:I,ROW(INDIRECT(CELL(\"address\"))),),0)),ROW(ТПА[Категория])-1),ROW(ТПА!A40))),\"\")","v":""}]

{"sheet":"ТПА","index":1,"n_rows":41,"n_cols":6,"rows_kept":41,"cut":false,"hidden":false,"merged":[]}
["№ ТПА","КОД ТПА","Категория","Мощность","Сторона","Ряд"]
["001",null,"Крупное литьё",null,"Россия","Большой ряд"]
["003",null,"Крупное литьё",null,"Россия","Большой ряд"]
["037",null,"Крупное литьё",null,"Россия","Большой ряд"]
["059",null,"Крупное литьё",null,"Россия","Большой ряд"]
["6001",null,"Крупное литьё",null,"Франция","Новая зона"]
["1001",null,"Крупное литьё",null,"Франция","Новая зона"]
["007",null,"Среднее литьё",null,"Россия","Средний ряд"]
["008",null,"Среднее литьё",null,"Россия","Средний ряд"]
["1005",null,"Среднее литьё",null,"Россия","Средний ряд"]
["1004",null,"Среднее литьё",null,"Россия","Средний ряд"]
["011",null,"Среднее литьё",null,"Россия","Средний ряд"]
["012",null,"Среднее литьё",null,"Россия","Средний ряд"]
["013",null,"Среднее литьё",null,"Россия","Средний ряд"]
["6010",null,"Среднее литьё",null,"Россия","Средний ряд"]
["6002",null,"Среднее литьё",null,"Франция","РЕНО"]
["6003",null,"Среднее литьё",null,"Франция","РЕНО"]
["1015",null,"Среднее литьё",null,"Франция","Новая зона"]
["1016",null,"Среднее литьё",null,"Франция","Новая зона"]
["016",null,"Мелкое литьё",null,"Россия","Вокзал"]
["017",null,"Мелкое литьё",null,"Россия","Вокзал"]
["018",null,"Мелкое литьё",null,"Россия","Вокзал"]
["019",null,"Мелкое литьё",null,"Россия","Вокзал"]
["021",null,"Мелкое литьё",null,"Россия","Вокзал"]
["1007",null,"Мелкое литьё",null,"Россия","Вокзал"]
["1010",null,"Мелкое литьё",null,"Франция","Новая зона"]
["1009",null,"Мелкое литьё",null,"Франция","Новая зона"]
["6004",null,"Мелкое литьё",null,"Франция","РЕНО"]
["6005",null,"Мелкое литьё",null,"Франция","РЕНО"]
["6006",null,"Мелкое литьё",null,"Франция","РЕНО"]
["6007",null,"Мелкое литьё",null,"Франция","РЕНО"]
["020",null,"Мелкое литьё",null,"Франция","Малый ряд"]
["029",null,"Мелкое литьё",null,"Франция","Малый ряд"]
["030",null,"Мелкое литьё",null,"Франция","Малый ряд"]
["032",null,"Мелкое литьё",null,"Франция","Малый ряд"]
["033",null,"Мелкое литьё",null,"Франция","Малый ряд"]
["034",null,"Мелкое литьё",null,"Франция","Малый ряд"]
["035",null,"Мелкое литьё",null,"Франция","Малый ряд"]
["036",null,"Мелкое литьё",null,"Франция","Малый ряд"]
["1011",null,"Мелкое литьё",null,"Франция","Малый ряд"]
["Belmatic",null,"Мелкое литьё",null,"Франция","Малый ряд"]

{"sheet":"ДЕТАЛИ_ЛИТЬЕ","index":2,"n_rows":17,"n_cols":9,"rows_kept":17,"cut":false,"hidden":false,"merged":[]}
["Литьевой №","Референс","Название детали","Категория","ТПА1","ТПА2","ТПА3","ТПА4","ТПА5"]
["2190-5325012/00",8450003356,"панель приборов","Крупное литьё","001"]
["2195-5325012/00",8450061215,"панель приборов","Крупное литьё"]
["217042804015/01",null,"бампер з.","Крупное литьё"]
["217242804015/01",null,"бампер з.","Крупное литьё"]
["2170-2804142/00",null,"балка бампера","Среднее литьё"]
["21704-2803132/00",null,"балка бампера","Среднее литьё"]
["21704-2803058/00",null,"накладка п/б ср.","Среднее литьё"]
["2171-2804142/00",null,"балка бампера","Среднее литьё"]
["2172-2804142/00",null,"балка бампера","Среднее литьё"]
["2194-8415122/00",8450004987,"обтекатель порога пр.","Среднее литьё"]
["2197-2803057/00",8450061320,"решетка бампера нижняя","Мелкое литьё"]
[21910630207400,8450002329,"обивка дв. задка верх.пр.","Мелкое литьё"]
[21910630207500,8450002330,"обивка дв. задка верх.лев.","Мелкое литьё"]
[21910630207800,8450002331,"обивка дв. задка верх.сред.","Мелкое литьё"]
["2110-5325124/00",null,"щиток","Мелкое литьё"]
["2110-5325322/00",null,"крышка","Мелкое литьё"]